fUSD/lending_fUSD_20250330
["ID","MTS","AMOUNT","RATE_DAILY","PERIOD"]
[356844009,1743318634650,-66244.2908,0.00032609,2]
[356844010,1743318634659,-150.0,0.00032611,2]
[356844011,1743318634669,-150.0,0.00032625,2]
[356844012,1743318634678,-150.0,0.00032641,2]
[356844013,1743318634687,-150.0,0.00032643,2]
[356844014,1743318634697,-150.0,0.00032643,2]
[356844015,1743318634706,-1000.0,0.00032643,2]
[356844016,1743318634715,-1000.0,0.00032645,2]
[356844017,1743318634724,-378.35,0.00032646,2]
[356844018,1743318634734,-150.0,0.00032647,2]
[356844019,1743318634743,-1000.0,0.00032672,2]
[356844020,1743318634752,-150.0,0.00032673,2]
[356844021,1743318634761,-150.0,0.00032674,2]
[356844022,1743318634770,-399.0,0.00032687,5]
[356844023,1743318634779,-150.0,0.00032699,2]
[356844024,1743318634788,-150.0,0.00032703,2]
[356844025,1743318634798,-166.10117168,0.00032703,2]
[356844026,1743318634807,-150.0,0.00032707,2]
[356844027,1743318634817,-1000.0,0.00032715,2]
[356844028,1743318634826,-1000.0,0.00032721,2]
[356844029,1743318634836,-1000.0,0.00032741,2]
[356844030,1743318634845,-150.0,0.00032744,2]
[356844031,1743318634855,-150.0,0.00032755,2]
[356844032,1743318634864,-150.0,0.00032756,2]
[356844033,1743318634874,-1000.0,0.00032774,2]
[356844034,1743318634883,-150.0,0.00032785,2]
[356844035,1743318634892,-150.0,0.00032788,2]
[356844036,1743318634902,-150.0,0.00032806,2]
[356844037,1743318634911,-150.0,0.0003281,2]
[356844038,1743318634920,-1000.0,0.00032812,2]
[356844039,1743318634930,-223.0,0.00032816,2]
[356844040,1743318634940,-410.39980407,0.00032816,2]
[356844041,1743318634949,-150.0,0.00032819,2]
[356844042,1743318634960,-150.0,0.00032825,2]
[356844043,1743318634969,-150.0,0.00032827,2]
[356844044,1743318634978,-150.0,0.00032833,2]
[356844045,1743318634988,-150.0,0.00032834,2]
[356844046,1743318634998,-150.0,0.00032843,2]
[356844047,1743318635007,-184.23670196,0.00032851,4]
[356844048,1743318635016,-150.0,0.00032852,2]
[356844049,1743318635026,-616.90677084,0.0003287,2]
[356844050,1743318635036,-156.02471048,0.00032876,2]
[356844051,1743318635046,-4941.78,0.00032877,2]
[356844052,1743318635058,-150.0,0.00032883,2]
[356844053,1743318635068,-1000.0,0.00032884,2]
[356844054,1743318635077,-1000.0,0.00032886,2]
[356844055,1743318635087,-150.0,0.00032889,2]
[356844056,1743318635096,-611.0,0.000329,30]
[356844057,1743318635106,-510.50036072,0.000329,29]
[356844058,1743318635116,-468.2575,0.000329,2]
[356844059,1743318635126,-1000.0,0.00032901,2]
[356844060,1743318635136,-1000.0,0.00032902,2]
[356844061,1743318635146,-1000.0,0.00032902,2]
[356844062,1743318635155,-26916.1457092,0.00032905,2]
[356844063,1743318635164,-151.35,0.00032906,2]
[356844064,1743318635174,-151.35,0.00032906,2]
[356844065,1743318635183,-151.35,0.00032906,2]
[356844066,1743318635195,-101497.2827944,0.00032916,2]
[356844067,1743318635208,-1176.27375207,0.00032916,2]
[356844068,1743318635224,-33.72624793,0.00032916,2]
[356844069,1743318635235,-699.90859523,0.00032916,2]
[356844070,1743318635245,-360.41936489,0.00032916,2]
[356844071,1743318635255,-346.62335816,0.00032916,2]
[356844072,1743318635266,-757.96907982,0.00032916,2]
[356844073,1743318635276,-1513.41828189,0.00032916,2]
[356844074,1743318635287,-466.79107208,0.00032916,2]
[356844075,1743318635301,-557.80811085,0.00032916,2]
[356844076,1743318635310,-1259.11662701,0.00032916,2]
[356844077,1743318635322,-2254.90318443,0.00032916,2]
[356844078,1743318635335,-1645.20296599,0.00032916,2]
[356844079,1743318635347,-1827.927257,0.00032916,2]
[356844080,1743318635359,-615.49234453,0.00032916,2]
[356844081,1743318635368,-172.23302656,0.00032916,2]
[356844082,1743318635379,-367.35042861,0.00032916,2]
[356844083,1743318635400,-687.92150937,0.00032916,2]
[356844084,1743318635412,-2799.65112647,0.00032916,2]
[356844085,1743318635423,-57156.58740711,0.00032916,2]
[356844092,1743318637616,-1094.58744436,0.00032258,5]
[356844093,1743318637625,-330.40668785,0.00032916,2]
[356844094,1743318637636,-786.946942,0.00032916,2]
[356844095,1743318637651,-988.0907459,0.00032916,2]
[356844159,1743318642675,-279.14,0.00026849,2]
[356844160,1743318642685,-279.14,0.00032646,2]
[356844161,1743318642695,-150.0,0.00032915,2]
[356844162,1743318642705,-16.07005528,0.00032916,2]
[356844163,1743318643634,-443.48,0.00032123,2]
[356844164,1743318643644,-152.02,0.00032123,2]
[356844165,1743318643654,-158.82475265,0.00032916,2]
[356844166,1743318643665,-36.10519207,0.00032916,2]
[356844167,1743318643675,-257.64913821,0.00032916,2]
[356844168,1743318643686,-1643.06551133,0.00032916,2]
[356844169,1743318643717,-621.37860057,0.00032916,2]
[356844170,1743318643763,-619.2449657,0.00032916,2]
[356844171,1743318643775,-18114.23009641,0.00032916,2]
[356844172,1743318643784,-2692.49371779,0.00032916,2]
[356844173,1743318643793,-193.27618575,0.00032916,2]
[356844174,1743318643899,-624.38737693,0.00032916,2]
[356844180,1743318645922,-622.15636844,0.00032916,2]
[356844181,1743318645934,-500.0,0.00032916,2]
[356844183,1743318786243,-165.6,0.00032932,120]
[356844184,1743318786313,-510.50036072,0.000369,41]
[356844185,1743318786376,-281.57942078,0.000372,103]
[356844186,1743318786443,-2641.24726373,0.00038388,35]
[356844187,1743318786673,-510.50036072,0.000409,53]
[356844188,1743318786736,-232.03709257,0.00041,120]
[356844189,1743318786796,-41607.04,0.00041,90]
[356844190,1743318786860,-160.19209686,0.00041023,120]
[356844191,1743318786926,-529.72988227,0.00041095,90]
[356844192,1743318787002,-165.6,0.00041142,120]
[356844193,1743318787092,-154.0,0.00042,120]
[356844194,1743318787164,-150.0,0.00042397,120]
[356844195,1743318787224,-150.0,0.00042397,120]
[356844196,1743318787284,-150.0,0.00042397,120]
[356844197,1743318787342,-150.0,0.00042397,120]
[356844198,1743318787400,-500.0,0.00042465,120]
[356844199,1743318787458,-500.0,0.00042465,120]
[356844200,1743318787516,-500.0,0.00042465,120]
[356844201,1743318787572,-500.0,0.00042465,120]
[356844202,1743318787630,-500.0,0.00042465,120]
[356844203,1743318787692,-500.0,0.00042465,120]
[356844204,1743318787750,-500.0,0.00042465,120]
[356844205,1743318787808,-500.0,0.00042465,120]
[356844206,1743318787868,-500.0,0.00042465,120]
[356844207,1743318787927,-500.0,0.00042465,120]
[356844208,1743318787986,-500.0,0.00042465,120]
[356844209,1743318788048,-500.0,0.00042465,120]
[356844210,1743318788110,-500.0,0.00042465,120]
[356844211,1743318788173,-500.0,0.00042465,120]
[356844212,1743318788238,-500.0,0.00042465,120]
[356844213,1743318788300,-500.0,0.00042465,120]
[356844214,1743318788362,-995.0,0.00042465,120]
[356844215,1743318788442,-513.89394019,0.00042739,60]
[356844216,1743318788505,-175.030311,0.00042798,120]
[356844217,1743318788568,-306.0314374,0.000428,120]
[356844218,1743318788633,-155.40068999,0.00043,120]
[356844219,1743318788710,-180.32,0.000431,33]
[356844220,1743318788780,-180.32,0.000431,33]
[356844221,1743318788850,-180.32,0.000431,33]
[356844222,1743318788918,-180.32,0.000431,33]
[356844223,1743318788987,-180.32,0.000431,33]
[356844224,1743318789060,-180.32,0.000431,33]
[356844225,1743318789136,-180.32,0.000431,33]
[356844226,1743318789206,-180.32,0.000431,33]
[356844227,1743318789278,-180.32,0.000431,33]
[356844228,1743318789347,-180.32,0.000431,33]
[356844229,1743318789417,-180.32,0.000431,33]
[356844230,1743318789484,-180.32,0.000431,33]
[356844231,1743318789551,-180.32,0.000431,33]
[356844232,1743318789621,-180.32,0.000431,33]
[356844233,1743318789693,-180.32,0.000431,33]
[356844234,1743318789764,-180.32,0.000431,33]
[356844235,1743318789832,-180.32,0.000431,33]
[356844236,1743318789897,-180.32,0.000431,33]
[356844237,1743318789961,-180.32,0.000431,33]
[356844238,1743318790028,-180.32,0.000431,33]
[356844239,1743318790096,-180.32,0.000431,33]
[356844240,1743318790166,-180.32,0.000431,33]
[356844241,1743318790237,-180.32,0.000431,33]
[356844242,1743318790305,-180.32,0.000431,33]
[356844243,1743318790369,-175.030311,0.00043198,120]
[356844244,1743318790431,-4488.4569862,0.0004321,120]
[356844245,1743318790499,-175.030311,0.00043498,120]
[356844246,1743318790560,-278.88173213,0.000437,120]
[356844247,1743318790624,-26156.22832458,0.000439,120]
[356844248,1743318790686,-936.03300404,0.00043945,120]
[356844249,1743318790746,-520.9641776,0.00044,61]
[356844250,1743318790805,-2620.25766216,0.00044,120]
[356844251,1743318790863,-2051.8924908,0.00044,120]
[356844252,1743318790920,-293.30777276,0.00044,120]
[356844253,1743318790982,-4588.03684433,0.00044,120]
[356844254,1743318791046,-213.0,0.00044,120]
[356844255,1743318791109,-382.143062,0.00044,57]
[356844256,1743318791184,-159.80765881,0.0004439,120]
[356844257,1743318791246,-248.8745853,0.000445,120]
[356844258,1743318791309,-231.77046919,0.000449,120]
[356844259,1743318791368,-510.50036072,0.000449,65]
[356844260,1743318791430,-150.0,0.00045,120]
[356844261,1743318791492,-162.95,0.00045,120]
[356844262,1743318791552,-866.94233346,0.00045,120]
[356844263,1743318791613,-224.52591946,0.00045,120]
[356844264,1743318791674,-151.0,0.00045,120]
[356844265,1743318791734,-292.04,0.00045,120]
[356844266,1743318791794,-237.33354,0.00045,120]
[356844267,1743318791856,-150.0,0.00045,85]
[356844268,1743318791923,-1462.28246654,0.00045,120]
[356844269,1743318791994,-339.78055906,0.00045,120]
[356844270,1743318792065,-2340.0837165,0.00045,120]
[356844271,1743318792139,-500.0,0.00045205,120]
[356844272,1743318792214,-500.0,0.00045205,120]
[356844273,1743318792290,-500.0,0.00045205,120]
[356844274,1743318792363,-691.45,0.00045205,120]
[356844275,1743318792434,-1212.56,0.00045205,120]
[356844276,1743318792505,-613.06,0.00045205,120]
[356844277,1743318792574,-547.05,0.00045205,120]
[356844278,1743318792633,-6831.79,0.00045205,120]
[356844279,1743318792694,-585.66,0.00045205,120]
[356844280,1743318792757,-500.0,0.00045205,120]
[356844281,1743318792819,-500.0,0.00045205,120]
[356844282,1743318792877,-1152.38,0.00045205,120]
[356844283,1743318792940,-694.22,0.00045205,120]
[356844284,1743318793002,-500.0,0.00045205,120]
[356844285,1743318793064,-8336.19,0.00045205,120]
[356844286,1743318793256,-748.34,0.00045205,120]
[356844287,1743318793323,-919.06,0.00045205,120]
[356844288,1743318793387,-543.4,0.00045205,120]
[356844289,1743318793452,-1125.31,0.00045205,120]
[356844290,1743318793512,-702.3,0.00045205,120]
[356844291,1743318793573,-610.15947722,0.00045205,120]
[356844292,1743318793634,-500.0,0.00045205,120]
[356844293,1743318793695,-714.97,0.00045205,120]
[356844294,1743318793758,-620.69,0.00045205,120]
[356844295,1743318793821,-739.61,0.00045205,120]
[356844296,1743318793882,-500.0,0.00045205,120]
[356844297,1743318793946,-500.0,0.00045205,120]
[356844298,1743318794005,-3000.0,0.00045205,120]
[356844299,1743318794064,-500.0,0.00045479,120]
[356844300,1743318794124,-500.0,0.00045479,120]
[356844301,1743318794179,-500.0,0.00045479,120]
[356844302,1743318794236,-691.45,0.00045479,120]
[356844303,1743318794292,-1212.56,0.00045479,120]
[356844304,1743318794345,-613.06,0.00045479,120]
[356844305,1743318794403,-547.05,0.00045479,120]
[356844306,1743318794457,-6831.79,0.00045479,120]
[356844307,1743318794511,-585.66,0.00045479,120]
[356844308,1743318794566,-500.0,0.00045479,120]
[356844309,1743318794621,-192.15604327,0.00045479,120]
[356844310,1743318794674,-1152.38,0.00045479,120]
[356844311,1743318794729,-694.22,0.00045479,120]
[356844312,1743318794784,-8336.19,0.00045479,120]
[356844313,1743318794839,-500.0,0.00045479,120]
[356844314,1743318794895,-748.34,0.00045479,120]
[356844315,1743318794952,-919.06,0.00045479,120]
[356844316,1743318795009,-543.4,0.00045479,120]
[356844317,1743318795069,-1125.31,0.00045479,120]
[356844318,1743318795128,-702.3,0.00045479,120]
[356844319,1743318795182,-500.0,0.00045479,120]
[356844320,1743318795242,-714.97,0.00045479,120]
[356844321,1743318795296,-620.69,0.00045479,120]
[356844322,1743318795354,-739.61,0.00045479,120]
[356844323,1743318795412,-500.0,0.00045479,120]
[356844324,1743318795465,-500.0,0.00045479,120]
[356844325,1743318795523,-162.95,0.000455,120]
[356844326,1743318795580,-292.04,0.000455,120]
[356844327,1743318795636,-500.0,0.00045753,120]
[356844328,1743318795694,-500.0,0.00045753,120]
[356844329,1743318795752,-500.0,0.00045753,120]
[356844330,1743318795811,-691.45,0.00045753,120]
[356844331,1743318795867,-1212.56,0.00045753,120]
[356844332,1743318795922,-613.06,0.00045753,120]
[356844333,1743318795977,-547.05,0.00045753,120]
[356844334,1743318796035,-6831.79,0.00045753,120]
[356844335,1743318796094,-585.66,0.00045753,120]
[356844336,1743318796154,-500.0,0.00045753,120]
[356844337,1743318796214,-1152.38,0.00045753,120]
[356844338,1743318796271,-694.22,0.00045753,120]
[356844339,1743318796328,-8336.19,0.00045753,120]
[356844340,1743318796388,-500.0,0.00045753,120]
[356844341,1743318796452,-748.34,0.00045753,120]
[356844342,1743318796509,-919.06,0.00045753,120]
[356844343,1743318796567,-543.4,0.00045753,120]
[356844344,1743318796628,-1125.31,0.00045753,120]
[356844345,1743318796684,-702.3,0.00045753,120]
[356844346,1743318796740,-500.0,0.00045753,120]
[356844347,1743318796796,-714.97,0.00045753,120]
[356844348,1743318796851,-620.69,0.00045753,120]
[356844349,1743318796904,-739.61,0.00045753,120]
[356844350,1743318796959,-500.0,0.00045753,120]
[356844351,1743318797011,-500.0,0.00045753,120]
[356844352,1743318797067,-1176.53247629,0.000459,119]
[356844353,1743318797123,-13752.73217757,0.00046,120]
[356844354,1743318797177,-154.0,0.00046,120]
[356844355,1743318797232,-500.0,0.00046027,120]
[356844356,1743318797289,-434.57046283,0.00046027,120]
[356844357,1743318797343,-500.0,0.00046027,120]
[356844358,1743318797395,-691.45,0.00046027,120]
[356844359,1743318797453,-1212.56,0.00046027,120]
[356844360,1743318797505,-613.06,0.00046027,120]
[356844361,1743318797555,-547.05,0.00046027,120]
[356844362,1743318797607,-6831.79,0.00046027,120]
[356844363,1743318797661,-585.66,0.00046027,120]
[356844364,1743318797719,-500.0,0.00046027,120]
[356844365,1743318797777,-1152.38,0.00046027,120]
[356844366,1743318797836,-694.22,0.00046027,120]
[356844367,1743318797891,-8336.19,0.00046027,120]
[356844368,1743318797944,-500.0,0.00046027,120]
[356844369,1743318798000,-748.34,0.00046027,120]
[356844370,1743318798059,-919.06,0.00046027,120]
[356844371,1743318798116,-543.4,0.00046027,120]
[356844372,1743318798173,-1125.31,0.00046027,120]
[356844373,1743318798227,-702.3,0.00046027,120]
[356844374,1743318798280,-500.0,0.00046027,120]
[356844375,1743318798338,-714.97,0.00046027,120]
[356844376,1743318798397,-620.69,0.00046027,120]
[356844377,1743318798456,-739.61,0.00046027,120]
[356844378,1743318798511,-500.0,0.00046027,120]
[356844379,1743318798564,-500.0,0.00046027,120]
[356844380,1743318798623,-153.0,0.00046027,90]
[356844381,1743318798678,-153.0,0.00046027,90]
[356844382,1743318798733,-150.0,0.000462,120]
[356844383,1743318798789,-1274.48939825,0.000463,120]
[356844384,1743318798848,-180.32,0.000463,39]
[356844385,1743318798908,-180.32,0.000463,39]
[356844386,1743318798969,-180.32,0.000463,39]
[356844387,1743318799035,-180.32,0.000463,39]
[356844388,1743318799101,-180.32,0.000463,39]
[356844389,1743318799305,-180.32,0.000463,39]
[356844390,1743318799372,-180.32,0.000463,39]
[356844391,1743318799441,-180.32,0.000463,39]
[356844392,1743318799505,-180.32,0.000463,39]
[356844393,1743318799569,-180.32,0.000463,39]
[356844394,1743318799633,-180.32,0.000463,39]
[356844395,1743318799697,-180.32,0.000463,39]
[356844396,1743318799759,-180.32,0.000463,39]
[356844397,1743318799824,-180.32,0.000463,39]
[356844398,1743318799884,-180.32,0.000463,39]
[356844399,1743318799940,-180.32,0.000463,39]
[356844400,1743318799993,-292.04,0.000463,120]
[356844401,1743318800048,-500.0,0.00046301,120]
[356844402,1743318800104,-169.13088975,0.00046301,120]
[356844403,1743318800158,-691.45,0.00046301,120]
[356844404,1743318800215,-1212.56,0.00046301,120]
[356844405,1743318800271,-613.06,0.00046301,120]
[356844406,1743318800326,-547.05,0.00046301,120]
[356844407,1743318800382,-6831.79,0.00046301,120]
[356844408,1743318800436,-585.66,0.00046301,120]
[356844409,1743318800490,-500.0,0.00046301,120]
[356844410,1743318800545,-1152.38,0.00046301,120]
[356844411,1743318800598,-694.22,0.00046301,120]
[356844412,1743318800649,-8336.19,0.00046301,120]
[356844413,1743318800707,-500.0,0.00046301,120]
[356844414,1743318800760,-748.34,0.00046301,120]
[356844415,1743318800814,-919.06,0.00046301,120]
[356844416,1743318800870,-543.4,0.00046301,120]
[356844417,1743318800925,-1125.31,0.00046301,120]
[356844418,1743318800980,-702.3,0.00046301,120]
[356844419,1743318801037,-500.0,0.00046301,120]
[356844420,1743318801095,-714.97,0.00046301,120]
[356844421,1743318801158,-620.69,0.00046301,120]
[356844422,1743318801219,-739.61,0.00046301,120]
[356844423,1743318801279,-500.0,0.00046301,120]
[356844424,1743318801335,-500.0,0.00046301,120]
[356844425,1743318801392,-500.0,0.00046575,120]
[356844426,1743318801455,-691.45,0.00046575,120]
[356844427,1743318801515,-1212.56,0.00046575,120]
[356844428,1743318801572,-613.06,0.00046575,120]
[356844429,1743318801633,-547.05,0.00046575,120]
[356844430,1743318801694,-6831.79,0.00046575,120]
[356844431,1743318801751,-585.66,0.00046575,120]
[356844432,1743318801808,-500.0,0.00046575,120]
[356844433,1743318801863,-1152.38,0.00046575,120]
[356844434,1743318801918,-694.22,0.00046575,120]
[356844435,1743318801973,-8336.19,0.00046575,120]
[356844436,1743318802029,-500.0,0.00046575,120]
[356844437,1743318802086,-748.34,0.00046575,120]
[356844438,1743318802143,-919.06,0.00046575,120]
[356844439,1743318802200,-543.4,0.00046575,120]
[356844440,1743318802256,-1125.31,0.00046575,120]
[356844441,1743318802311,-702.3,0.00046575,120]
[356844442,1743318802367,-367.21358904,0.00046575,120]
[356844443,1743318802423,-714.97,0.00046575,120]
[356844444,1743318802481,-620.69,0.00046575,120]
[356844445,1743318802538,-739.61,0.00046575,120]
[356844446,1743318802594,-500.0,0.00046575,120]
[356844447,1743318802648,-500.0,0.00046575,120]
[356844448,1743318802705,-500.0,0.00046849,120]
[356844449,1743318802760,-691.45,0.00046849,120]
[356844450,1743318802815,-1212.56,0.00046849,120]
[356844451,1743318802869,-613.06,0.00046849,120]
[356844452,1743318802924,-547.05,0.00046849,120]
[356844453,1743318802977,-6831.79,0.00046849,120]
[356844454,1743318803034,-585.66,0.00046849,120]
[356844455,1743318803095,-500.0,0.00046849,120]
[356844456,1743318803151,-1152.38,0.00046849,120]
[356844457,1743318803208,-694.22,0.00046849,120]
[356844458,1743318803268,-8336.19,0.00046849,120]
[356844459,1743318803323,-600.8920064,0.00046849,120]
[356844460,1743318803379,-748.34,0.00046849,120]
[356844461,1743318803434,-919.06,0.00046849,120]
[356844462,1743318803489,-543.4,0.00046849,120]
[356844463,1743318803543,-1125.31,0.00046849,120]
[356844464,1743318803601,-702.3,0.00046849,120]
[356844465,1743318803656,-714.97,0.00046849,120]
[356844466,1743318803712,-620.69,0.00046849,120]
[356844467,1743318803770,-739.61,0.00046849,120]
[356844468,1743318803826,-500.0,0.00046849,120]
[356844469,1743318803885,-500.0,0.00046849,120]
[356844470,1743318803944,-20561.0,0.000469,60]
[356844471,1743318804001,-235.02,0.000469,120]
[356844472,1743318804062,-2000.0,0.0004698,35]
[356844473,1743318804123,-305.85339047,0.00047123,120]
[356844474,1743318804181,-691.45,0.00047123,120]
[356844475,1743318804238,-1212.56,0.00047123,120]
[356844476,1743318804296,-613.06,0.00047123,120]
[356844477,1743318804355,-547.05,0.00047123,120]
[356844478,1743318804414,-6831.79,0.00047123,120]
[356844479,1743318804475,-585.66,0.00047123,120]
[356844480,1743318804533,-500.0,0.00047123,120]
[356844481,1743318804590,-1152.38,0.00047123,120]
[356844482,1743318804649,-694.22,0.00047123,120]
[356844483,1743318804710,-8336.19,0.00047123,120]
[356844484,1743318804767,-748.34,0.00047123,120]
[356844485,1743318804825,-919.06,0.00047123,120]
[356844486,1743318804884,-543.4,0.00047123,120]
[356844487,1743318804942,-1125.31,0.00047123,120]
[356844488,1743318805001,-702.3,0.00047123,120]
[356844489,1743318805064,-714.97,0.00047123,120]
[356844490,1743318805125,-620.69,0.00047123,120]
[356844491,1743318805182,-739.61,0.00047123,120]
[356844492,1743318805372,-416.29631511,0.00047123,120]
[356844493,1743318805433,-503.22402685,0.00047123,120]
[356844494,1743318805495,-691.56246773,0.00047397,120]
[356844495,1743318805555,-1212.65518576,0.00047397,120]
[356844496,1743318805612,-613.22758819,0.00047397,120]
[356844497,1743318805670,-547.17396546,0.00047397,120]
[356844498,1743318805729,-6831.87782584,0.00047397,120]
[356844499,1743318805788,-585.81268324,0.00047397,120]
[356844500,1743318805844,-479.56233439,0.00047397,120]
[356844501,1743318805901,-1152.53139781,0.00047397,120]
[356844502,1743318805959,-694.28557771,0.00047397,120]
[356844503,1743318806012,-8336.21977159,0.00047397,120]
[356844504,1743318806066,-748.46028318,0.00047397,120]
[356844505,1743318806124,-919.24895901,0.00047397,120]
[356844506,1743318806180,-543.61755614,0.00047397,120]
[356844507,1743318806237,-1125.4674,0.00047397,120]
[356844508,1743318806293,-702.48406617,0.00047397,120]
[356844509,1743318806349,-715.04041146,0.00047397,120]
[356844510,1743318806408,-620.73554521,0.00047397,120]
[356844511,1743318806464,-739.75383604,0.00047397,120]
[356844512,1743318806525,-150.0,0.000474,120]
[356844513,1743318806581,-256152.35771123,0.00047495,120]
[356844514,1743318806636,-2000.0,0.000477,120]
[356844515,1743318806692,-2000.0,0.000477,120]
[356844516,1743318806747,-535.0,0.000477,120]
[356844517,1743318806800,-150.0,0.00047777,120]
[356844518,1743318806854,-313.68053225,0.000478,120]
[356844519,1743318806912,-50000.0,0.00048,48]
[356844520,1743318806968,-150.0,0.00048,120]
[356844521,1743318807025,-150.0,0.000486,120]
[356844522,1743318807082,-5729.80389373,0.000488,120]
[356844523,1743318807140,-510.50036072,0.000489,77]
[356844524,1743318807201,-2119.7746,0.0004895,35]
[356844525,1743318807262,-50000.0,0.00049,49]
[356844526,1743318807323,-50000.0,0.00049,39]
[356844527,1743318807382,-487.8153346,0.00049,50]
[356844528,1743318807438,-500.0,0.00049315,120]
[356844529,1743318807493,-500.0,0.00049315,120]
[356844530,1743318807549,-500.0,0.00049315,120]
[356844531,1743318807604,-532.25819347,0.00049315,120]
[356844532,1743318807658,-166.42350074,0.00049316,90]
[356844533,1743318807716,-165.6,0.00049352,120]
[356844534,1743318807772,-10319.58293186,0.000494,60]
[356844535,1743318807830,-227.71236428,0.000494,120]
[356844536,1743318807888,-183.39422422,0.000495,120]
[356844537,1743318807946,-150.0,0.00049676,120]
[356844538,1743318808002,-3000.0,0.0004968,35]
[356844539,1743318808063,-150.0,0.000498,120]
[356844540,1743318808124,-2000.0,0.0004989,45]
[356844541,1743318808179,-133325.20828815,0.000499,120]
[356844542,1743318808236,-165.62772933,0.000499,38]
[356844543,1743318808294,-179.07702379,0.00049992,60]
[356844544,1743318808351,-484.54175432,0.00049999,120]
[356844545,1743318808409,-173.60913484,0.00049999,120]
[356844546,1743318808466,-395.13064154,0.00049999,120]
[356844547,1743318808524,-197.76833018,0.00049999,120]
[356844548,1743318808583,-50000.0,0.0005,50]
[356844549,1743318808641,-50000.0,0.0005,40]
[356844550,1743318808699,-6143.4734956,0.0005,120]
[356844551,1743318808758,-1000000.0,0.0005,120]
[356844552,1743318808817,-1110.78559159,0.0005,120]
[356844553,1743318808875,-570337.0,0.0005,120]
[356844554,1743318808932,-193.0,0.0005,120]
[356844555,1743318808989,-12513.97593292,0.0005,120]
[356844556,1743318809049,-223.2423933,0.0005,120]
[356844557,1743318809109,-1000.0,0.0005,120]
[356844558,1743318809168,-150.0,0.0005,120]
[356844559,1743318809230,-154.0,0.0005,120]
[356844560,1743318809289,-534.31514124,0.0005,60]
[356844561,1743318809348,-21260.3629493,0.0005,120]
[356844562,1743318809411,-11431.10546248,0.0005,120]
[356844563,1743318809468,-200.0,0.0005,120]
[356844564,1743318809524,-500.0,0.00050136,34]
[356844565,1743318809580,-2080.98694651,0.00050378,67]
[356844566,1743318809639,-270639.21128596,0.000505,120]
[356844567,1743318829813,-200.0,0.00034924,120]
[356844568,1743318829990,-1310.12883108,0.00044,120]
[356844569,1743318830059,-151.06141926,0.00045,120]
[356844570,1743318830112,-150.0,0.00045,120]
[356844571,1743318830165,-150.0,0.00045,120]
[356844572,1743318830218,-150.0,0.00045,120]
[356844573,1743318830270,-224.48490363,0.00045,120]
[356844574,1743318830323,-150.0,0.00045,120]
[356844575,1743318830372,-150.0,0.00045,120]
[356844576,1743318830423,-150.0,0.00045,120]
[356844577,1743318830475,-194.38257907,0.00045,120]
[356844578,1743318830525,-150.0,0.00045,120]
[356844579,1743318830723,-150.0,0.00045,120]
[356844580,1743318830779,-150.67319877,0.00045,120]
[356844581,1743318830838,-500.0,0.00045,120]
[356844582,1743318830895,-500.0,0.00045,120]
[356844583,1743318830951,-571.75576244,0.00045,120]